Cogmind - Beta 13 @@@ ROGUE MODE // 2024.03.16 @ 15:12:16 Player: opdo Result: Self-destructed Performance ------------- Evolutions (1) 500 Regions Visited (2) 400 Robots Destroyed (14) 70 Value Destroyed (400) 400 Prototype IDs (0) 0 Alien Tech Used (0) 0 Bonus (0) 0 TOTAL SCORE: 1370 Bonus ------- None Cogmind --------- Core Integrity 302/400 Matter 287/300 Energy 257/265 System Corruption 2% Temperature Danger (436) Movement Walking (120) Location -9/Materials Parts ------- > --- POWER (1) -------- Improved Ion Engine > --- PROPULSION (3) --- Aluminum Leg Aluminum Leg > --- UTILITY (3) ------ Structural Scanner Targeting Computer > --- WEAPON (2) ------- Particle Gun > --- INVENTORY (5) ---- Light Nuclear Core Small Storage Unit Sensor Array Seismic Detector Peak State ------------ > --- POWER ------------ Improved Ion Engine > --- PROPULSION ------- Aluminum Leg Aluminum Leg Flight Unit > --- UTILITY ---------- Structural Scanner Terrain Scanner Targeting Computer > --- WEAPON ----------- Light Assault Rifle Light Assault Rifle > --- INVENTORY -------- Small Storage Unit Sensor Array Seismic Detector [Rating: 10] Favorites ----------- Power Improved Ion Engine Engine Improved Ion Engine Propulsion Aluminum Leg Leg Aluminum Leg Flight Unit Flight Unit Utility Targeting Computer Device Structural Scanner Storage Small Storage Unit Processor Targeting Computer Weapon Light Assault Rifle Energy Gun Particle Gun Ballistic Gun Light Assault Rifle Build | -11 -10 -9 ------- Run | Yrd Mat Mat Slots Evolved 2 | . . 2 Power . | . . . Propulsion 1 | . . 1 Utility 1 | . . 1 Weapon . | . . . Parts Attached 19 | 6 7 6 Power 2 | 1 . 1 Engine 2 | 1 . 1 Core . | . . . Reactor . | . . . Propulsion 5 | 2 1 2 Treads . | . . . Leg 4 | 2 1 1 Wheel . | . . . Hover . | . . . Flight 1 | . . 1 Utility 5 | 1 3 1 Device 3 | . 2 1 Storage 1 | 1 . . Processor 1 | . 1 . Hackware . | . . . Protection . | . . . Artifact . | . . . Weapon 7 | 2 3 2 Energy Gun 2 | . . 2 Energy Cannon . | . . . Ballistic Gun 5 | 2 3 . Ballistic Cannon . | . . . Launcher . | . . . Special Weapon . | . . . Impact Weapon . | . . . Slashing Weapon . | . . . Piercing Weapon . | . . . Special Melee Weapon . | . . . Unidentified Prototypes . | . . . Parts Lost 8 | . 3 5 Power 1 | . 1 . Propulsion 3 | . 1 2 Utility 1 | . . 1 Weapon 3 | . 1 2 Highest Loss Streak 3 | . 3 3 To Critical Strikes . | . . . Average Slot Usage (%) 90 | . 93 87 Engine 9 | . 9 10 Leg 24 | . 27 20 Flight 2 | . . 5 Device 15 | . 13 18 Processor 12 | . 13 11 Energy Gun 3 | . . 6 Ballistic Gun 20 | . 28 13 Naked Turns . | . . . Heaviest Build 14 | 14 14 13 Greatest Support 20 | 20 20 20 Greatest Overweight (x) 1 | . . 1 Average Overweight (x) . | . . . Largest Inventory Capacity 8 | 8 8 5 Average Capacity 5 | 5 5 5 Most Carried 5 | 4 5 5 Average Carried 2 | . 2 3 Final Capacity 8 | 8 5 5 Final Carried 5 | . 5 4 Class Distribution -------------------- 61% | Mutant 38% | Scavenger-Mutant Dominant Class ---------------- Mutant | -10/Materials Scavenger-Mutant | -9/Materials Resources | -11 -10 -9 ----------- Run | Yrd Mat Mat Matter Collected 506 | 180 195 131 Remotely . | . . . Salvage Created 425 | . 248 177 Parts 23 | . 15 8 Haulers Intercepted . | . . . Recyclers Shooed . | . . . Parts Field Recycled . | . . . Retrieved Matter . | . . . Parts Self-Destructed . | . . . Prevented . | . . . Kills | -11 -10 -9 ------- Run | Yrd Mat Mat Combat Hostiles Destroyed 14 | . 10 4 Guns 13 | . 9 4 AOE 1 | . 1 . Classes Destroyed 3 | . 2 1 Swarmer 6 | . 6 . Grunt 6 | . 4 2 Sentry 2 | . . 2 Best Kill Streak 5 | . 5 2 Combat Bots Only 5 | . 5 2 Max Kills in Single Turn 1 | . 1 1 Gunslinging . | . . . Exploded 1 | . 1 . Melee . | . . . Uniques/NPCs Destroyed . | . . . Combat | -11 -10 -9 -------- Run | Yrd Mat Mat Hostile Shots Fired 101 | . 47 54 Missed 27 | . 15 12 Damage Taken 1135 | . 553 582 Core 270 | . 172 98 Absorbed by Shields . | . . . Core Remaining (%) 65 | 100 31 . Volleys Fired 60 | . 19 41 Largest 2 | . 2 2 Hottest 105 | . 40 105 Shots Fired 106 | . 38 68 Gun 106 | . 38 68 Cannon . | . . . Launcher . | . . . Special . | . . . Kinetic 88 | . 38 50 Thermal 18 | . . 18 Explosive . | . . . Electromagnetic . | . . . Robot Hit Streak 13 | . 7 13 Robot Miss Streak 3 | . 2 3 Penetration Max . | . . . Secondary Targets 1 | . 1 . Max Gunslinging Chain 1 | . 1 . Shots Hit Robots 73 | . 23 50 Core Hits 24 | . 12 12 Critical Kills . | . . . Critical Parts Destroyed . | . . . Critical Strikes 1 | . . 1 Burn 1 | . . 1 Melee Attacks . | . . . Impact . | . . . Slashing . | . . . Piercing . | . . . Sneak Attacks . | . . . Combat Hostiles . | . . . Follow-up Attacks . | . . . Damage Inflicted 942 | 2 453 487 Guns 798 | . 311 487 Cannons . | . . . Explosions 142 | . 142 . Melee . | . . . Ramming 2 | 2 . . Kinetic 567 | . 311 256 Thermal 231 | . . 231 Explosive 142 | . 142 . Electromagnetic . | . . . Impact . | . . . Slashing . | . . . Piercing . | . . . Highest Corruption 2 | . . 2 Average Corruption 2 | . . 2 Corruption Purged . | . . . Corruption Blocked . | . . . Effects 2 | . . 2 Matter Fused 2 | . . 2 Overload Shots . | . . . Overflow Damage 76 | . 76 . Projectiles . | . . . Explosions 76 | . 76 . Melee . | . . . Knockbacks . | . . . Impact . | . . . Kinetic . | . . . Secondary . | . . . Self-Inflicted Damage 215 | . 215 . Shots 2 | . 2 . Rammed . | . . . Targets Rammed 1 | 1 . . Kicked 1 | 1 . . Crushed . | . . . Highest Temperature 436 | . 3 436 Average Temperature 138 | . 2 145 Received Heat Transfer 366 | . 66 300 Effects 4 | . . 4 Shutdowns 1 | . . 1 Interference 3 | . . 3 Siege Activations . | . . . Robots Corrupted . | . . . Combat Hostiles . | . . . Parts Fried . | . . . Impact Corruptions . | . . . Robots Melted . | . . . Combat Hostiles . | . . . Parts Melted 3 | . . 3 Heat Transferred 618 | . . 618 Parts Sabotaged . | . . . Parts Stolen . | . . . Parts Stripped . | . . . Power Chain Reactions . | . . . Alert | -11 -10 -9 ------- Run | Yrd Mat Mat Peak Influence 298 | . 298 235 Initial 125 | . . 125 Average 154 | . 167 164 Maximum Alert Level 1 | . 1 1 Low Security (%) 73 | 100 59 82 Level 1 26 | . 40 17 Level 2 . | . . . Level 3 . | . . . Level 4 . | . . . Level 5 . | . . . High Security . | . . . Max Security . | . . . Squads Dispatched 3 | . 2 1 Investigation 1 | . 1 . Extermination . | . . . Reinforcement 2 | . 1 1 Assault . | . . . Garrison . | . . . Intercept . | . . . Searches Triggered . | . . . Construction Impeded . | . . . Haulers Reinforced . | . . . Active Scanning Responses . | . . . Cargo Convoy Interrupts . | . . . Stealth | -11 -10 -9 --------- Run | Yrd Mat Mat Distress Signals . | . . . Communications Jammed . | . . . Distress Signals . | . . . Times Spotted 20 | . 10 10 Peak Tracking Total 5 | . 3 5 Tactical Retreats . | . . . Traps | -11 -10 -9 ------- Run | Yrd Mat Mat Traps Triggered 2 | . 1 1 Indirectly . | . . . Trap Hack Attempts . | . . . Triggered . | . . . Disarmed . | . . . Reprogrammed . | . . . Reused . | . . . Traps Extracted . | . . . Installed . | . . . Triggered . | . . . Machines | -11 -10 -9 ---------- Run | Yrd Mat Mat Machines Disabled 2 | . 2 . Max in Single Turn 2 | . 2 . Machines Repaired . | . . . Machines Dismantled . | . . . Machines Sabotaged . | . . . Overloaded Fab Kills . | . . . Hacking | -11 -10 -9 --------- Run | Yrd Mat Mat Machines Accessed 1 | . 1 . Terminals . | . . . Fabricators . | . . . Repair Stations . | . . . Recycling Units 1 | . 1 . Scanalyzers . | . . . Garrison Access . | . . . Total Hacks 3 | . 3 . Successful 1 | . 1 . Failed 2 | . 2 . Catastrophic . | . . . Database Lockouts . | . . . Manual . | . . . Terminals . | . . . Fabricators . | . . . Repair Stations . | . . . Recycling Units 3 | . 3 . Scanalyzers . | . . . Garrison Access . | . . . Terminal Hacks . | . . . Fabricator Hacks . | . . . Repair Station Hacks . | . . . Recycling Unit Hacks 1 | . 1 . Retrieve Components 1 | . 1 . Scanalyzer . | . . . Garrison Access Hacks . | . . . Unauthorized Hacks . | . . . Terminals . | . . . Fabricators . | . . . Repair Stations . | . . . Recycling Units . | . . . Scanalyzers . | . . . Garrison Access . | . . . Data Cores Recovered . | . . . Used . | . . . Hacking Detections 1 | . 1 . Full Trace Events 1 | . 1 . Feedback Events . | . . . Feedback Blocked . | . . . Robot Schematics Acquired . | . . . Robots Built . | . . . Authchips . | . . . Time . | . . . Total Robot Build Rating . | . . . Part Schematics Acquired . | . . . Parts Built . | . . . Authchips . | . . . Time . | . . . Total Part Build Rating . | . . . Parts Repaired . | . . . Time . | . . . Parts Recycled . | . . . Recycled Matter . | . . . Retrieved Matter . | . . . Retrieved Components 3 | . 3 . Parts Scanalyzed . | . . . Part Schematics Acquired . | . . . Parts Damaged . | . . . Bothacking | -11 -10 -9 ------------ Run | Yrd Mat Mat Used RIF Installer . | . . . Robots Hacked . | . . . Non-combat . | . . . Combat . | . . . Robot Hacks Applied . | . . . Relay Couplers Released . | . . . Fabnet Peak Effective % . | . . . Robots Rewired . | . . . Allies Hacked . | . . . Hacks Repelled . | . . . Allies | -11 -10 -9 -------- Run | Yrd Mat Mat Total Allies . | . . . Largest Group . | . . . Highest-Rated Group . | . . . Highest-Rated Ally . | . . . Total Orders . | . . . Ally Attacks . | . . . Total Damage . | . . . Kills . | . . . Allies Corrupted . | . . . Allies Melted . | . . . Intel | -11 -10 -9 ------- Run | Yrd Mat Mat Robot Analysis Total . | . . . Derelict Logs Recovered . | . . . Drone Launches . | . . . Drone Recoveries . | . . . Exploration | -11 -10 -9 ------------- Run | Yrd Mat Mat Turns Passed 786 | 55 366 365 Spaces Moved 438 | 41 218 179 Core 10 | 10 . . Treads . | . . . Legs 428 | 31 218 179 Wheels . | . . . Hover . | . . . Flight . | . . . Fastest Speed 50 | 50 120 120 Average Speed 118 | 102 120 120 Slowest Speed 190 | 120 120 190 Overloaded Moves . | . . . Propulsion Burnouts . | . . . Robots Hopped . | . . . Cave-ins Triggered . | . . . Exploration Rate (%) 22 | 4 46 16 Regions Visited 2 Branch Regions . Pre-discovered Areas . | . . . Known Exits Taken . | . . . Unknown Exits Taken 2 | 1 1 . Scrap Searched . | . . . Spaces Dug . | . . . Terrain Destroyed 29 | . 29 . Melee . | . . . Projectile . | . . . AOE 29 | . 29 . Terrain Rammed . | . . . Walls Destroyed . | . . . Machines Disabled . | . . . Actions | -11 -10 -9 --------- Run | Yrd Mat Mat Total 607 | 53 283 271 Wait 65 | . 30 35 Move 436 | 40 217 179 Hop . | . . . Pick Up 22 | 6 9 7 Fast Attach . | . . . Attach 14 | 6 3 5 Detach . | . . . Swap 5 | . 4 1 Drop 4 | . 1 3 Fire 60 | . 19 41 Melee . | . . . Ram . | . . . Kick 1 | 1 . . Crush . | . . . Escape Stasis . | . . . Rewire . | . . . Trap . | . . . Miscellaneous . | . . . Route ------- -11/Scrapyard -10/Materials -9/Materials History --------- Turn | Location | Event 8 | -11/Scrapyard | Discovered new exit (range 16) 56 | -11/Scrapyard | Entered Materials 295 | -10/Materials | Core integrity fell below 50% 325 | -10/Materials | Lost 3 parts (1p1n1w) 333 | -10/Materials | Build established: Mutant 419 | -10/Materials | Discovered new exit (range 3) 422 | -10/Materials | Entered another Materials area 422 | -9/Materials | Evolved 2 slots: Propulsion x1, Utility x1 669 | -9/Materials | Lost 3 parts (2n1w) 787 | -9/Materials | Self-destructed Last Messages --------------- Triggered Shock Trap. The floor emits a surge of raw power. System corrupted (+2). System corrupted: Matter fused (-5). Critical hit (Burn: +37). Y-45 Defender suffers critical hit (Burn). Y-45 Defender heat damages Imp. Ion Engine. Y-45 Defender heat spikes uncontrollably. Lgt. Treads melted. Lgt. Armor Plating melted. Beam Rifle melted. Y-45 Defender destroyed. Sml. Laser destroyed. Critical hit (Burn: +37). Terrain Scanner destroyed. Power failure, Imp. Ion Engine shutdown. Overheating: System interference. Targeting Computer temporarily disabled. Particle Gun temporarily disabled. G-34 Mercenary heat spikes uncontrollably. Map ----- +----------------------------------------------------+ | ???????????????????????????????????????????????? | | ???????????????????????????????????????????????? | | ???????????????????????????????????????????????? | | ???????????????????????????????????????????????? | | ???????????????????????? ????????????????????? | | ???????????????????????? ????????????????????? | | ???????????????????????? ????????????????????? | | ???????????????????????? ????????????????????? | | ???????????????????????? ????????????????????? | | ???????????????????????? ????????????????????? | | ???????????????????????? ????????????????????? | | ???????????????????????? ????????????????????? | | ???????????????????????? u ????????????????????? | | ??????????????????????? #???????????????????? | | ???????????????????????## ###??????????????????? | | ???????????????????????## # ???????????????????? | | ????????????????"??????## # ???????????????????? | | ?????????????????"?????## # ??? ???????????????? | | ????????????#??????????## # ???????????????????? | | ????????????????? ?????##g# ???????????????????? | | ???????????????????????## ##???????????????????? | | ???????????????????????## ##?????????#?????????? | | ??????????????????"????##%##???????????????????? | | ????????????????????#??## ##???? ??????????????? | | ?????????????? ?????##### ### ?????????????????? | | ?????????????????? ?#####@### ?""??????#???????? | | ????????????????##??## # ?????????????????? | | ?????????????????#??## # ?????????????????? | | ????????????????????## # ?????????????????? | | ???????????####?###### # ???????#????? | | ???????????########### ###+######### # ???? | | ???????????## # g# ######## # ???? | | ???????????## """ # + ???? | | ????######### """ # g# T #####???????#?? | | ????######### """ # # #####???#?????? | | ????## # # ## #########??##### | | ????## """# # ## ##########?##### | | ????## """# ]! # o## ###!!!!######+## | | ????## """# ! ! # ## ##! !##?## ## | | ????## """# ######### ## ##### ## | | ###### ####+############ # ##### ## | | ##########+### ##??????## ## ## | | #####???## ## ## | | T ########## ##### ## ## | | ##?#####/####### ## ## | | ############## ##### ### ^ ## ## | | ################## ##### """ + ## ## | | ##??????## + + """ ### ##### ## | | ##??????## # ######## """ ###+######+## | | ##??????## * # ######## ||# ## | +----------------------------------------------------+ Best States ------------- Heat Dissipation 28 Energy Generation 12 Energy Capacity 265 Matter Stores 300 Matter Capacity 300 Sight Range 16 Robot Scan Range 14 Terrain Scan Range 14 Terrain Scan Density 10 Evasion (%) 55 Targeting Accuracy 5 Item Schematics ----------------- None Robot Schematics ------------------ None Fabricated ------------ Nothing Alien Tech Used ----------------- None Achievements -------------- None Challenges ------------ None Game ------ Seed RocketNavigationInitializer Manual? 0 Play Time 00:08:24 Cumulative 8.8 hours Start 2024.03.16 @ 15:06:22 End 2024.03.16 @ 15:12:16 Sessions 1 Manual Loads 0 Difficulty Rogue Special Mode None Game No. 24 Rogue 22 Adventurer 2 Explorer 0 Win Type - Total 0 Types 0/0/0/0/0/0/0/0/0 Lore% 15 Gallery% 22 Achievement% 13 Wizard Run 0 Options --------- Layout 1 ASCII 0 Keyboard 0 Movement Arrows Keybinds 0 Fullscreen 1 Font 24/Smallcaps Map View 50x35 Zoom Use 0% Tactical HUD 0 Map Filters NONE Filters NONE Steam 1 RUN: bc8f6266-2edf-449c-a26f-d716d81f820d